[Event "Begum Laila Alam 12th Women 2022"]
[Site "Dhaka"]
[Date "2022.05.08"]
[Round "4.1"]
[White "Sultana, Sharmin Shirin"]
[Black "Hamid, Rani"]
[Result "1/2-1/2"]
[ECO "D52"]
[WhiteElo "1992"]
[BlackElo "1783"]
[Annotator "TA"]
[PlyCount "226"]
[EventDate "2022.05.05"]
[EventType "swiss"]
[EventCountry "BAN"]
[SourceTitle "playchess.com"]
[Source "ChessBase"]
[SourceQuality "1"]
[TimeControl "5400+30"]

{[%evp 24,226,112,45,35,34,86,56,99,45,43,25,35,33,32,32,102,75,175,174,210,211,227,176,195,184,197,191,183,169,251,221,256,200,191,191,201,177,177,177,177,177,177,178,197,208,185,173,171,164,173,172,197,199,225,200,244,244,350,261,336,258,348,356,350,342,441,219,342,344,456,449,564,554,532,518,518,518,673,485,29991,29992,29992,4968,2194,5057,4958,4133,4106,3675,1785,63,63,0,29990,1258,823,626,626,626,626,0,626,0,625,0,626,626,611,562,435,89,89,89,90,89,146,124,124,8,124,124,241,241,241,241,241,241,241,241,241,241,241,241,241,241,241,241,241,241,893,0,135,135,135,135,135,0,177,8,8,8,8,8,8,8,8,8,8,8,8,8,8,8,224,224,12334,10950,29966,29975,29973,195,195,195,192,8,200,200,200,200,200,200,200,200,200,200,200,200,200,200,200,200,200,200,200,200,200,200,200,200,200,0,0,0,200]} 1. d4 {[%emt 0:00:04]} d5 {[%emt 0:00:06]} 2. c4 {[%emt 0:00:24]} e6 {[%emt 0:00:02]} 3. Nc3 {[%emt 0:00:13]} Nf6 {[%emt 0:00:08]} 4. Bg5 {[%emt 0:00:39]} Nbd7 {[%emt 0:00:12]} 5. e3 {[%emt 0:00:25]} c6 {[%emt 0:00:06]} 6. Nf3 {[%emt 0:01:31]} Qa5 {[%emt 0:00:19]} 7. Nd2 {[%emt 0:00:38]} Bb4 {[%emt 0:00:58]} 8. Qc2 {[%emt 0:00:38]} Ne4 {[%emt 0:01:05]} 9. Ndxe4 {[%emt 0:03:18]} dxe4 {[%emt 0:00:03]} 10. Bh4 {[%emt 0:01:14]} O-O {[%emt 0:00:58]} 11. Be2 {[%emt 0:06:06]} e5 {[%emt 0:00:53]} 12. O-O {[%emt 0:09:45]} f5 {[%emt 0:01:26] [#]} 13. a3 {[%emt 0:05:37]} (13. Nxe4 $1 $16 {[%cal Oa2a3][%mdl 512]} fxe4 14. a3) 13... Bxc3 $14 {[%emt 0:02:29] D52: Queen's Gambit Declined: Cambridge Springs Variation.} 14. bxc3 {[%emt 0:00:09]} Re8 {[%emt 0:02:10] Against Be7} (14... Rf7 $14) 15. f3 {[%emt 0:15:09] [#]} exf3 $146 {[%emt 0:01:32] [#] White is slightly better.} ({Predecessor:} 15... exd4 16. cxd4 Nf8 17. f4 Be6 18. Rfd1 Qc7 19. Qb2 Qf7 20. Qb4 Ng6 21. Be1 Red8 {0-1 (48) Friedmann,O-Tartakower,S London 1946}) 16. Rxf3 {[%emt 0:05:09]} ({White should try} 16. Qxf5 $1 $16 {And now Qh5 would win.} Nb6 17. Qxf3) 16... Nf8 {[%emt 0:01:32]} 17. c5 {[%emt 0:03:58] Strongly threatening Bc4+.} Be6 {[%emt 0:04:16] Inhibits Bc4.} 18. Rff1 $36 {[%emt 0:00:48][%mdl 2048] White fights for an advantage.} (18. dxe5 Nd7 $17) 18... Ng6 {[%emt 0:03:31]} 19. Bg3 {[%emt 0:00:24]} exd4 {[%emt 0:00:23]} (19... Qd8 $14) 20. exd4 {[%emt 0:03:55]} Bd5 {[%emt 0:03:04]} (20... b6 $16) 21. Rxf5 $18 {[%emt 0:04:56]} Re3 {[%emt 0:02:22]} 22. Bd3 {[%emt 0:01:32]} Rae8 {[%emt 0:01:03]} 23. Bf2 {[%emt 0:07:49]} R3e7 {[%emt 0:04:52]} 24. a4 {[%emt 0:10:02]} Qc7 {[%emt 0:02:38]} 25. Bg3 {[%emt 0:00:30]} Qd7 {[%emt 0:00:55]} 26. Rg5 {[%emt 0:04:07]} Bf7 {[%emt 0:05:28]} (26... Qe6 $142 27. Be5 (27. Bxg6 Qe3+ 28. Qf2 Qxc3 $11) 27... Nxe5 28. Bxh7+ (28. Rxe5 Qh6 $16) 28... Kh8 29. Rxe5 Qg4) 27. Rf1 {[%emt 0:01:04]} Re3 {[%emt 0:01:22]} 28. Bd6 {[%emt 0:03:28]} Re1 {[%emt 0:03:10]} 29. Rgf5 {[%emt 0:01:20]} Qe6 {[%emt 0:01:22]} 30. Qf2 {[%emt 0:02:32]} Rxf1+ {[%emt 0:01:30]} 31. Bxf1 {[%emt 0:00:58]} Ne7 {[%emt 0:01:54]} 32. Re5 {[%emt 0:00:44]} Qd7 {[%emt 0:00:10]} 33. c4 {[%emt 0:02:54]} Nc8 {[%emt 0:01:37]} 34. Rxe8+ {[%emt 0:00:18]} Qxe8 {[%emt 0:00:05]} 35. Be5 {[%emt 0:00:22]} Ne7 {[%emt 0:02:19]} 36. Bd3 {[%emt 0:00:26]} Ng6 {[%emt 0:00:32]} 37. Bd6 {[%emt 0:00:39]} Qe6 {[%emt 0:01:21]} 38. h3 {[%emt 0:00:42]} Qe8 {[%emt 0:03:41]} 39. Kh2 {[%emt 0:00:32]} Qd8 {[%emt 0:00:29]} 40. Qf5 {[%emt 0:00:46]} b6 {[%emt 0:01:46]} (40... Be8 {was worth a try.} 41. a5 b6 42. axb6 axb6) 41. Qf3 {[%emt 0:00:49]} bxc5 {[%emt 0:00:18]} 42. Bxc5 {[%emt 0:00:38]} Qd7 {[%emt 0:02:10]} 43. Qg3 {[%emt 0:01:30]} a5 {[%emt 0:08:38]} 44. Qb8+ {[%emt 0:00:45]} Be8 {[%emt 0:00:17] [#]} 45. Qd6 {[%emt 0:02:00]} (45. Bf5 $142 $1 {[%mdl 512]} Qf7 46. Bd6 $1) 45... Qf7 {[%emt 0:00:27]} (45... Qxd6+ $142 46. Bxd6 Nf8) 46. Bb6 {[%emt 0:00:48]} Nf4 {[%emt 0:00:49]} 47. Be4 {[%emt 0:00:35]} Ne2 {[%emt 0:02:02]} 48. d5 {[%emt 0:00:29]} Nc3 {[%emt 0:01:05]} 49. Bf3 {[%emt 0:00:27]} cxd5 {[%emt 0:01:19]} 50. cxd5 {[%emt 0:00:24]} Nxa4 {[%emt 0:01:52]} 51. Bg4 {[%emt 0:00:29]} Qf6 {[%emt 0:03:08]} (51... Nxb6 $2 52. Be6 (52. Qxb6 Qf4+ 53. Kh1 Qc1+ 54. Kh2 Qf4+ 55. Kh1 Qc1+ 56. Kh2 Qf4+ $11) 52... Nd7 53. Bxf7+) (51... Qf8 $18 52. Be6+ Bf7 53. Bxf7+ Qxf7) 52. Be6+ {[%emt 0:00:12]} Kh8 {[%emt 0:00:02] [#]} 53. Bxa5 {[%emt 0:00:48]} (53. Bd4 $142 $1 {[%mdl 512]} Qf1 54. Be5 h5 55. Qe7 Qf6 56. Qxe8+ Kh7 57. Bxf6 gxf6 58. Qg8+ Kh6 59. Bf5 h4 60. Qg6#) 53... h6 {[%emt 0:00:31]} 54. Qb8 {[%emt 0:00:22]} Kh7 {[%emt 0:01:47]} 55. Bc7 {[%emt 0:00:43] This bishop pair is nice.} ({Weaker is} 55. Qxe8 Qf4+ 56. g3 Qf2+ 57. Kh1 Qf1+ 58. Kh2 Qf2+ 59. Kh1 Qf1+ 60. Kh2 Qf2+ $11) 55... Bf7 {[%emt 0:00:26]} 56. Be5 {[%emt 0:00:15]} Qe7 {[%emt 0:00:14]} 57. Qb1+ $2 {[%emt 0:00:40]} (57. Bf5+ $18 Bg6 58. Bxg6+ Kxg6 59. Qb1+ Kf7 60. Qf5+ Ke8 61. d6) 57... Bg6 $1 $14 {[%emt 0:00:09]} 58. Qb8 {[%emt 0:00:43] White is more active.} (58. Qb5 $14 Nc5 59. d6 $1 Qxe6 60. Qxc5) 58... Be8 $2 {[%emt 0:00:57][%mdl 8192]} (58... Bf7 $11 59. Bf5+ Bg6 60. Bxg6+ Kxg6 61. Qb1+ Kf7) 59. Bf5+ {[%emt 0:00:14]} (59. Bd6 $142 Qd7 60. Bxd7 Bxd7 61. Qb1+ Kg8 62. Qg6 Bf5 63. Qe8+ Kh7 64. Be5 Be6 65. g4 Bg8 66. Qf8 Bxd5 67. Qxg7#) 59... Bg6 $18 {[%emt 0:00:03] [#]} 60. Bd6 $1 {[%emt 0:01:04]} Qf6 {[%emt 0:01:37]} 61. Be6 {[%emt 0:00:07][%csl Ge6][%cal Rb8g8]} Bf7 {[%emt 0:00:17] Inhibits Qg8+.} 62. Be5 {[%emt 0:00:51]} Qe7 $1 {[%emt 0:01:37]} 63. Bd6 {[%emt 0:00:40]} Qf6 $1 {[%emt 0:00:26]} 64. Be5 {[%emt 0:00:27]} Qe7 $1 {[%emt 0:00:10]} 65. Bxf7 {[%emt 0:00:35]} Qxf7 {[%emt 0:00:06][%mdl 4096] Endgame KQB-KQN} 66. Qb3 {[%emt 0:00:05]} Qf5 {[%emt 0:01:01]} 67. Bg3 $2 {[%emt 0:00:50]} (67. Qg3 $18 {[%csl Ge5][%cal Rg3g7]} Qg6 68. Bd4 Qxg3+ 69. Kxg3) 67... Nc5 $16 {[%emt 0:00:30]} 68. Qc4 {[%emt 0:00:18]} Nd7 {[%emt 0:00:11]} 69. Qd4 {[%emt 0:00:27] Against Nb6} (69. d6 {feels hotter.} g5 70. Kg1 Qb1+ 71. Kf2) 69... h5 {[%emt 0:01:57]} (69... Kg8 $142 70. Be1 Qf6) 70. d6 {[%emt 0:00:26]} g5 {[%emt 0:02:03]} 71. Kg1 {[%emt 0:00:55]} (71. Be1 $1 $16 {[%cal Re1c3]}) 71... h4 {[%emt 0:00:33]} (71... Qb1+ $1 $11 72. Kh2 Kg6) 72. Be1 {[%emt 0:00:20]} Qc5 {[%emt 0:03:31]} (72... Kg6 $16 73. Bd2 Qb1+ 74. Kf2 (74. Kh2 Qf5 $16) 74... Qf5+ 75. Kg1 Qb1+ 76. Kh2 Qf5 77. Kg1) 73. Qxc5 $18 {[%emt 0:00:23]} Nxc5 {[%emt 0:02:19] KB-KN} 74. Bb4 {[%emt 0:00:07]} Nd7 {[%emt 0:00:08]} 75. Kf2 {[%emt 0:00:06]} Kg6 {[%emt 0:00:01]} 76. Kf3 {[%emt 0:00:09] Black must now prevent Ke4.} Kf5 {[%emt 0:00:05]} 77. Bc3 {[%emt 0:00:19]} Nc5 {[%emt 0:00:33]} 78. Ba1 {[%emt 0:01:02]} Nd7 {[%emt 0:00:12]} 79. Bd4 {[%emt 0:00:01]} Nf8 {[%emt 0:00:32]} 80. Bc3 {[%emt 0:00:34]} Nd7 {[%emt 0:00:05]} 81. Ke3 {[%emt 0:01:16]} Nf8 $2 {[%emt 0:02:47]} (81... Ke6 82. Ke4 Nc5+ 83. Kd4 Nb7) 82. Kf3 $2 {[%emt 0:00:23]} (82. Kd4 $18 {is the precise move to win.} g4 83. hxg4+ Kxg4 84. Ke4) 82... Nd7 $16 {[%emt 0:00:13]} 83. Bg7 {[%emt 0:00:10]} Nc5 {[%emt 0:00:21]} 84. Bb2 {[%emt 0:00:50]} Nd7 {[%emt 0:00:10]} 85. Bd4 {[%emt 0:00:07] Prevents Nc5.} Nf8 $1 {[%emt 0:00:09]} 86. g3 $2 {[%emt 0:00:32]} (86. Ke3 $18) 86... hxg3 $11 {[%emt 0:00:08]} 87. Kxg3 {[%emt 0:00:01]} Nd7 {[%emt 0:00:41]} 88. Kf3 {[%emt 0:00:08]} Nf8 {[%emt 0:00:13]} 89. Bc3 {[%emt 0:00:45]} Nd7 {[%emt 0:00:08]} 90. Ke3 {[%emt 0:00:18]} Nf8 {[%emt 0:00:38]} 91. Bd2 {[%emt 0:00:39]} Nd7 {[%emt 0:00:11]} 92. Kd4 {[%emt 0:00:47]} Nf6 {[%emt 0:00:49]} 93. Bc1 {[%emt 0:00:56]} Nd7 $2 {[%emt 0:01:26]} (93... g4 $1 $11 {and Black stays safe.} 94. hxg4+ Ke6) 94. Kd5 $18 {[%emt 0:00:31]} Nf8 $2 {[%emt 0:01:59]} (94... g4 95. hxg4+ Kxg4) 95. Kc6 {[%emt 0:00:41]} g4 {[%emt 0:00:44]} 96. hxg4+ {[%emt 0:00:10]} Kxg4 {[%emt 0:00:02]} 97. Kc7 $2 {[%emt 0:00:57]} (97. Bh6 {mates} Ne6 98. d7 Nd8+ 99. Kd6 Kf5 100. Bg7 Nb7+ 101. Kd5 Kg5 102. Bd4) 97... Kf5 {[%emt 0:00:36]} 98. Bh6 {[%emt 0:00:16]} Ne6+ {[%emt 0:00:29] [#]} 99. Kd7 $2 {[%emt 0:00:07]} (99. Kc8 $1 $18) 99... Ke5 $2 {[%emt 0:02:16] [#]} (99... Nc5+ $1 $11 100. Ke7 Na6) 100. Ke7 $1 {[%emt 0:00:38] White threatens d7 and mate.} Nc5 {[%emt 0:00:57]} 101. Be3 {[%emt 0:00:51]} Nb7 {[%emt 0:01:19]} 102. d7 {[%emt 0:00:02]} Kd5 {[%emt 0:00:07]} 103. Bf4 {[%emt 0:00:58]} Kc6 {[%emt 0:00:40]} 104. Ke8 {[%emt 0:00:33]} Kb6 {[%emt 0:00:22]} 105. Bd2 {[%emt 0:00:27]} Kc6 {[%emt 0:00:02]} 106. Ba5 {[%emt 0:00:26]} Kd6 {[%emt 0:00:04]} 107. Bb6 {[%emt 0:00:10]} Kc6 {[%emt 0:00:06]} 108. Be3 {[%emt 0:00:21]} Kd6 {[%emt 0:00:13]} 109. Bf4+ {[%emt 0:00:13]} Kc6 {[%emt 0:00:02]} 110. Ke7 {[%emt 0:00:08]} Kb6 {[%emt 0:00:17]} 111. Be3+ {[%emt 0:00:29]} Kc6 {[%emt 0:00:02]} 112. Ke6 {[%emt 0:00:14]} Nd8+ $1 {[%emt 0:00:19]} 113. Ke7 {[%emt 0:00:05]} Nb7 {[%emt 0:00:13] Weighted Error Value: White=0.47/Black=0.62} 1/2-1/2

[Event "Begum Laila Alam 12th Women 2022"]
[Site "Dhaka"]
[Date "2022.05.08"]
[Round "4.2"]
[White "Nusrat Jahan, Alo"]
[Black "Noshin, Anjum"]
[Result "1/2-1/2"]
[ECO "C54"]
[WhiteElo "1652"]
[BlackElo "2065"]
[Annotator "TA"]
[PlyCount "67"]
[EventDate "2022.05.05"]
[EventType "swiss"]
[EventCountry "BAN"]
[SourceTitle "playchess.com"]
[Source "ChessBase"]
[SourceQuality "1"]
[TimeControl "5400+30"]

{[%evp 17,67,7,6,0,0,0,33,-14,55,57,53,61,73,0,10,16,91,-141,-125,-51,7,7,13,-5,0,0,0,-55,-41,-43,-44,-40,18,23,25,4,6,0,0,22,62,61,44,46,62,64,52,0,72,0,55,33]} 1. e4 {[%emt 0:03:55]} e5 {[%emt 0:00:10]} 2. Nf3 {[%emt 0:00:12]} Nc6 {[%emt 0:00:22]} 3. Bc4 {[%emt 0:00:57]} Bc5 {[%emt 0:00:09]} 4. c3 {[%emt 0:00:12]} Nf6 {[%emt 0:00:06]} 5. d4 {[%emt 0:00:08]} exd4 {[%emt 0:00:05]} 6. e5 {[%emt 0:00:06]} d5 {[%emt 0:00:06]} 7. Bb5 {[%emt 0:00:05]} Ne4 {[%emt 0:00:05]} 8. cxd4 {[%emt 0:00:06]} Bb6 {[%emt 0:00:19]} 9. Nc3 {[%emt 0:00:11]} O-O {[%emt 0:00:55]} 10. Be3 {[%emt 0:01:19] C54: Giuoco Piano: 4 c3 Nf6, main lines with 5 d4 and 5 d3.} Bg4 {[%emt 0:09:35]} 11. h3 {[%emt 0:02:09]} Bf5 {[%emt 0:02:23] [#]} 12. Qb3 $146 {[%emt 0:02:50]} (12. O-O $14) ({Predecessor:} 12. O-O Ne7 13. Nh4 Be6 14. Bd3 c5 15. Bxe4 dxe4 16. dxc5 Bc7 17. Qh5 Ng6 18. Nxg6 hxg6 19. Qe2 Bxe5 20. Nxe4 {1-0 (39) Lagarde,M (2625)-Jianu,V (2535) Athens 2021}) 12... Nxc3 {[%emt 0:07:14]} (12... Na5 $11 13. Qb4 (13. Qxd5 Qe7 $15) 13... a6) 13. Bxc6 $14 {[%emt 0:01:39]} bxc6 {[%emt 0:01:28]} 14. Qxc3 {[%emt 0:00:28]} Be4 {[%emt 0:21:53]} 15. Qxc6 {[%emt 0:13:47]} ({White should play} 15. Nd2 $16) 15... Ba5+ {[%emt 0:08:07]} 16. Bd2 {[%emt 0:11:38]} Bxd2+ {[%emt 0:05:27]} (16... Bb6 $11) 17. Kxd2 $2 {[%emt 0:03:01] [#]} (17. Nxd2 $16 {is necessary to keep the advantage.} Rb8 18. Nxe4 dxe4 19. Qc3 (19. Qxe4 c5 $16)) 17... Rb8 $1 $17 {[%emt 0:02:39]} 18. b3 {[%emt 0:03:06]} (18. Qc3 $17) 18... Bxf3 {[%emt 0:01:33]} (18... Rb6 $1 $15 19. Qc5 f6) 19. gxf3 $11 {[%emt 0:03:27]} Rb6 {[%emt 0:10:16]} 20. Qc3 $36 {[%emt 0:08:52][%mdl 2048] White has some pressure.} Qh4 {[%emt 0:17:35]} 21. Qe3 {[%emt 0:04:17]} f6 {[%emt 0:00:09]} 22. Ke2 {[%emt 0:10:40]} (22. e6 $11) 22... fxe5 {[%emt 0:04:02]} 23. dxe5 {[%emt 0:01:41]} d4 {[%emt 0:04:47]} 24. Qe4 {[%emt 0:03:04]} Qxe4+ {[%emt 0:01:55]} (24... Qh5 $1 $15) 25. fxe4 $15 {[%emt 0:00:01][%mdl 4096] Endgame KRR-KRR} Re6 $1 {[%emt 0:00:57]} 26. Rac1 {[%emt 0:04:13]} Rxe5 {[%emt 0:00:31]} 27. Rxc7 {[%emt 0:00:15] And now Kd3 would win.} Rxe4+ {[%emt 0:00:33]} 28. Kd3 {[%emt 0:00:22]} Ref4 {[%emt 0:00:15]} 29. Rxa7 {[%emt 0:00:17]} Rxf2 {[%emt 0:00:09]} 30. Kxd4 {[%emt 0:00:13]} R8f4+ {[%emt 0:01:06]} 31. Ke5 {[%emt 0:00:56]} Rf5+ {[%emt 0:00:09]} 32. Kd4 {[%emt 0:00:41]} R5f4+ $1 {[%emt 0:00:16]} 33. Ke5 {[%emt 0:00:06]} Rf5+ {[%emt 0:00:17]} 34. Ke4 {[%emt 0:22:36] Weighted Error Value: White=0.32/Black=0.20 (precise)} 1/2-1/2

[Event "Begum Laila Alam 12th Women 2022"]
[Site "Dhaka"]
[Date "2022.05.08"]
[Round "4.3"]
[White "Warsia, Khusbu"]
[Black "Khan, Nazrana"]
[Result "0-1"]
[ECO "B41"]
[WhiteElo "1575"]
[BlackElo "1829"]
[Annotator "NA RC COMBH"]
[PlyCount "92"]
[EventDate "2022.05.05"]
[EventType "swiss"]
[EventCountry "BAN"]
[SourceTitle "playchess.com"]
[Source "ChessBase"]
[SourceQuality "1"]
[TimeControl "5400+30"]

1. e4 {[%emt 0:00:03]} c5 {[%emt 0:00:08]} 2. Nf3 {[%emt 0:00:05]} e6 {[%emt 0:00:06]} 3. d4 {[%emt 0:00:06]} cxd4 {[%emt 0:00:06]} 4. Nxd4 {[%emt 0:00:07]} a6 {[%emt 0:00:08]} 5. c4 {[%emt 0:00:07]} Nf6 {[%emt 0:00:53]} 6. Nc3 {[%emt 0:00:08]} Qc7 {[%emt 0:00:38]} 7. a3 {[%emt 0:00:10]} Nc6 {[%emt 0:02:24]} 8. Be3 {[%emt 0:00:10]} Ne5 {[%emt 0:01:12]} 9. Rc1 {[%emt 0:00:43]} d6 {[%emt 0:07:45]} 10. Be2 {[%emt 0:00:17]} Be7 {[%emt 0:00:40]} 11. O-O {[%emt 0:00:19]} O-O {[%emt 0:00:14]} 12. f4 {[%emt 0:04:33]} Ng6 {[%emt 0:01:59]} 13. Bf3 {[%emt 0:00:46]} Bd7 {[%emt 0:04:03]} 14. b4 {[%emt 0:08:35]} Rac8 {[%emt 0:02:59]} 15. Nce2 {[%emt 0:05:08]} Qb8 {[%emt 0:05:34]} 16. Ng3 {[%emt 0:02:02]} Rfe8 {[%emt 0:11:23]} 17. Qd2 {[%emt 0:09:31]} b5 {[%emt 0:13:03]} 18. cxb5 {[%emt 0:01:30]} axb5 {[%emt 0:00:09]} 19. Be2 {[%emt 0:01:33]} e5 {[%emt 0:06:40]} 20. Rxc8 {[%emt 0:01:13]} Rxc8 {[%emt 0:00:15]} 21. Ndf5 {[%emt 0:00:07]} Bxf5 {[%emt 0:01:46]} 22. Nxf5 {[%emt 0:00:10]} Nxe4 {[%emt 0:07:18]} 23. Qd3 {[%emt 0:00:16]} Nc3 {[%emt 0:01:03]} 24. Bg4 {[%emt 0:00:27]} Rc4 {[%emt 0:02:13]} 25. Rc1 {[%emt 0:15:17]} Qc7 {[%emt 0:05:53]} 26. Bd2 {[%emt 0:06:02]} Nxf4 {[%emt 0:05:41]} 27. Bxf4 {[%emt 0:00:25]} exf4 {[%emt 0:00:32]} 28. Nxe7+ {[%emt 0:00:12]} Qxe7 {[%emt 0:00:26]} 29. Kf1 {[%emt 0:02:28]} Qe3 {[%emt 0:02:17]} 30. Qxe3 {[%emt 0:00:20]} fxe3 {[%emt 0:00:11]} 31. Bd7 {[%emt 0:00:29]} Rc7 {[%emt 0:01:19]} 32. Bf5 {[%emt 0:00:15]} g6 {[%emt 0:00:18]} 33. Bd3 {[%emt 0:00:11]} Kf8 {[%emt 0:00:32]} 34. Re1 {[%emt 0:00:15]} Ra7 {[%emt 0:00:59]} 35. Ra1 {[%emt 0:01:34]} d5 {[%emt 0:00:34]} 36. Ke1 {[%emt 0:00:52]} d4 {[%emt 0:00:14]} 37. g4 {[%emt 0:00:19]} Ke7 {[%emt 0:00:36]} 38. h4 {[%emt 0:00:16]} Kd6 {[%emt 0:01:06]} 39. h5 {[%emt 0:01:42]} Ke5 {[%emt 0:00:16]} 40. hxg6 {[%emt 0:00:36]} fxg6 {[%emt 0:00:28]} 41. g5 {[%emt 0:00:05]} Kf4 {[%emt 0:00:36]} 42. Kf1 {[%emt 0:00:15]} Kxg5 {[%emt 0:00:20]} 43. a4 {[%emt 0:00:08]} Rxa4 {[%emt 0:01:57]} 44. Rxa4 {[%emt 0:00:02]} bxa4 {[%emt 0:00:28]} 45. b5 {[%emt 0:00:07]} Nd5 {[%emt 0:00:24]} 46. Bc4 {[%emt 0:00:30]} Nb6 {[%emt 0:00:15]} 0-1

[Event "Begum Laila Alam 12th Women 2022"]
[Site "Dhaka"]
[Date "2022.05.08"]
[Round "4.4"]
[White "Israt, Jahan Diba"]
[Black "Kazi Zarin, Tasnim"]
[Result "0-1"]
[ECO "C54"]
[WhiteElo "1757"]
[BlackElo "1899"]
[Annotator "NA RC COMBH"]
[PlyCount "152"]
[EventDate "2022.05.05"]
[EventType "swiss"]
[EventCountry "BAN"]
[SourceTitle "playchess.com"]
[Source "ChessBase"]
[SourceQuality "1"]
[TimeControl "5400+30"]

1. e4 {[%emt 0:00:03]} e5 {[%emt 0:08:06]} 2. Nf3 {[%emt 0:00:09]} Nc6 {[%emt 0:00:16]} 3. Bc4 {[%emt 0:00:08]} Bc5 {[%emt 0:00:08]} 4. O-O {[%emt 0:00:11]} Nf6 {[%emt 0:00:14]} 5. d3 {[%emt 0:00:10]} h6 {[%emt 0:00:23]} 6. c3 {[%emt 0:00:09]} d6 {[%emt 0:00:50]} 7. Nbd2 {[%emt 0:00:29]} O-O {[%emt 0:03:11]} 8. a4 {[%emt 0:00:44]} a6 {[%emt 0:04:13]} 9. b4 {[%emt 0:01:55]} Ba7 {[%emt 0:02:38]} 10. h3 {[%emt 0:01:53]} Re8 {[%emt 0:07:59]} 11. Re1 {[%emt 0:03:06]} Be6 {[%emt 0:03:34]} 12. Bb2 {[%emt 0:02:43]} Qd7 {[%emt 0:03:15]} 13. Bxe6 {[%emt 0:02:40]} Rxe6 {[%emt 0:05:20]} 14. Nc4 {[%emt 0:03:12]} Ne7 {[%emt 0:04:54]} 15. Qc2 {[%emt 0:03:54]} Ng6 {[%emt 0:02:59]} 16. Ne3 {[%emt 0:04:45]} Rae8 {[%emt 0:05:51]} 17. Rac1 {[%emt 0:04:16]} c6 {[%emt 0:02:58]} 18. Nf5 {[%emt 0:03:30]} Bb8 {[%emt 0:11:25]} 19. g4 {[%emt 0:06:28]} Nf4 {[%emt 0:00:56]} 20. Kh2 {[%emt 0:03:29]} Nh7 {[%emt 0:02:42]} 21. d4 {[%emt 0:02:58]} exd4 {[%emt 0:07:34]} 22. N3xd4 {[%emt 0:09:52]} Rg6 {[%emt 0:02:19]} 23. Nf3 {[%emt 0:07:11]} Ng5 {[%emt 0:01:47]} 24. Nxg5 {[%emt 0:05:33]} hxg5 {[%emt 0:01:28]} 25. c4 {[%emt 0:03:13]} d5 {[%emt 0:03:36]} 26. e5 {[%emt 0:03:44]} Rge6 {[%emt 0:02:49]} 27. Rcd1 {[%emt 0:13:38]} Bxe5 {[%emt 0:00:32]} 28. Rxe5 {[%emt 0:02:09]} Rxe5 {[%emt 0:00:06]} 29. Bxe5 {[%emt 0:00:28]} Rxe5 {[%emt 0:00:06]} 30. Qc3 {[%emt 0:01:40]} f6 {[%emt 0:00:55]} 31. cxd5 {[%emt 0:01:14]} Nxd5 {[%emt 0:01:22]} 32. Qb3 {[%emt 0:02:33]} Qe6 {[%emt 0:02:27]} 33. b5 {[%emt 0:01:00]} axb5 {[%emt 0:00:51]} 34. axb5 {[%emt 0:00:15]} Re2 {[%emt 0:01:41]} 35. bxc6 {[%emt 0:01:33]} bxc6 {[%emt 0:00:52]} 36. Qb8+ {[%emt 0:01:13]} Kh7 {[%emt 0:00:52]} 37. Qa7 {[%emt 0:00:22]} Qe5+ {[%emt 0:01:25]} 38. Kg1 {[%emt 0:01:33]} Re1+ {[%emt 0:02:03]} 39. Rxe1 {[%emt 0:01:04]} Qxe1+ {[%emt 0:00:04]} 40. Kh2 {[%emt 0:00:16]} Qe5+ {[%emt 0:00:06]} 41. Kg1 {[%emt 0:00:20]} Qc7 {[%emt 0:00:16]} 42. Qxc7 {[%emt 0:00:45]} Nxc7 {[%emt 0:00:01]} 43. Kg2 {[%emt 0:01:10]} Nd5 {[%emt 0:00:55]} 44. Kf3 {[%emt 0:00:34]} Kg8 {[%emt 0:02:04]} 45. Ke4 {[%emt 0:00:42]} Kf7 {[%emt 0:00:23]} 46. Nd4 {[%emt 0:01:12]} Ne7 {[%emt 0:00:02]} 47. Kd3 {[%emt 0:00:36]} Ke8 {[%emt 0:00:57]} 48. Kc4 {[%emt 0:01:52]} Kd7 {[%emt 0:00:02]} 49. Kc5 {[%emt 0:00:48]} Ng6 {[%emt 0:02:32]} 50. Nf5 {[%emt 0:01:14]} Nf4 {[%emt 0:00:15]} 51. Nxg7 {[%emt 0:00:28]} Nd3+ {[%emt 0:00:54]} 52. Kd4 {[%emt 0:00:23]} Nxf2 {[%emt 0:00:02]} 53. Nh5 {[%emt 0:00:34]} Ke7 {[%emt 0:00:53]} 54. Kc5 {[%emt 0:00:38]} Nxh3 {[%emt 0:00:29]} 55. Kxc6 {[%emt 0:00:18]} Nf2 {[%emt 0:00:10]} 56. Kd5 {[%emt 0:00:29]} Nxg4 {[%emt 0:00:46]} 57. Ke4 {[%emt 0:00:30]} Kf7 {[%emt 0:00:57]} 58. Kf5 {[%emt 0:00:30]} Nh6+ {[%emt 0:00:05]} 59. Ke4 {[%emt 0:00:22]} f5+ {[%emt 0:01:27]} 60. Kf3 {[%emt 0:00:17]} Kg6 {[%emt 0:00:39]} 61. Ng3 {[%emt 0:00:18]} Ng8 {[%emt 0:00:32]} 62. Ne2 {[%emt 0:00:31]} Nf6 {[%emt 0:00:23]} 63. Nd4 {[%emt 0:00:42]} Nh5 {[%emt 0:00:36]} 64. Ne2 {[%emt 0:00:51]} g4+ {[%emt 0:00:09]} 65. Kg2 {[%emt 0:00:35]} f4 {[%emt 0:00:33]} 66. Kf2 {[%emt 0:00:18]} Kg5 {[%emt 0:00:39]} 67. Nd4 {[%emt 0:00:16]} Kf6 {[%emt 0:01:24]} 68. Ne2 {[%emt 0:00:59]} Ke5 {[%emt 0:00:13]} 69. Nc3 {[%emt 0:00:28]} Nf6 {[%emt 0:00:18]} 70. Ne2 {[%emt 0:00:24]} f3 {[%emt 0:00:57]} 71. Ng1 {[%emt 0:00:46]} Kf4 {[%emt 0:00:45]} 72. Ke1 {[%emt 0:00:29]} Ne4 {[%emt 0:00:29]} 73. Kf1 {[%emt 0:00:24]} Ke3 {[%emt 0:00:42]} 74. Ne2 {[%emt 0:00:45]} fxe2+ {[%emt 0:00:07]} 75. Ke1 {[%emt 0:00:08]} Kf4 {[%emt 0:00:13]} 76. Kxe2 {[%emt 0:00:10]} Kg3 {[%emt 0:00:16]} 0-1